bitfinex-derivatives/quotes_BTCF0:USTF0_20251210
["timestamp","ask_amount","ask_price","bid_price","bid_amount"]
[1765398709502,0.17035025,93650.0,93636.0,0.3608]
[1765398709699,0.36998932,93641.0,93640.0,0.67542]
[1765398709895,0.35954912,93641.0,93640.0,0.67542]
[1765398710211,0.6758877,93636.0,93635.0,0.056]
[1765398710504,1.0366877,93636.0,93635.0,0.056]
[1765398710705,1.3976042,93636.0,93635.0,0.056]
[1765398711305,1.3976042,93636.0,93635.0,0.034684]
[1765398711499,1.3976042,93636.0,93635.0,0.031684]
[1765398711704,1.0472465,93636.0,93635.0,0.380894]
[1765398712003,0.0106804,93612.0,93606.0,0.010681]
[1765398712308,0.00010284,93611.0,93601.0,0.3608]
[1765398712604,0.3608,93603.0,93602.0,0.67542]
[1765398712801,0.0106823,93595.0,93594.0,0.67555176]
[1765398713006,1.03682714,93595.0,93594.0,0.00013176]
[1765398713200,1.12106288,93595.0,93594.0,0.00013176]
[1765398713706,0.78138288,93595.0,93594.0,0.00013176]
[1765398714008,0.78238288,93595.0,93594.0,0.00013176]
[1765398714310,0.44617058,93595.0,93570.0,0.57058]
[1765398714507,0.3608,93582.0,93579.0,0.67542]
[1765398714803,0.0106839,93581.0,93579.0,0.67542]
[1765398715004,0.6758951,93571.0,93570.0,0.3608]
[1765398715205,0.010686,93563.0,93558.0,0.67542]
[1765398715518,0.36088227,93571.0,93558.0,0.67542]
[1765398715519,0.3608,93559.0,93558.0,0.67542]
[1765398716305,0.3608,93559.0,93558.0,0.67942]
[1765398717300,0.3608,93559.0,93558.0,0.67742]
[1765398717500,8.019e-05,93562.0,93561.0,0.67542]
[1765398718299,8.019e-05,93562.0,93561.0,0.34921]
[1765398718504,8.019e-05,93562.0,93561.0,0.67577]
[1765398718703,0.00016029,93570.0,93569.0,0.66285]
[1765398719203,0.00016029,93570.0,93569.0,0.33629]
[1765398719504,0.00016029,93570.0,93561.0,0.004]
[1765398719505,0.7117561,93562.0,93561.0,0.004]
[1765398719707,1.07263714,93562.0,93561.0,0.002]
[1765398719896,0.0106887,93539.0,93538.0,0.66285]
[1765398720207,0.0106903,93526.0,93525.0,0.66285]
[1765398720405,0.0106896,93532.0,93531.0,0.66285]
[1765398720607,0.0106896,93532.0,93531.0,0.3469797]
[1765398720608,0.00012365,93532.0,93531.0,0.3469797]
[1765398720809,0.00012365,93532.0,93531.0,0.6735397]
[1765398721108,0.00012365,93532.0,93518.0,0.3608]
[1765398721109,0.0106908,93522.0,93518.0,0.3608]
[1765398721297,0.0106912,93518.0,93505.0,0.3608]
[1765398721498,0.20469,93520.0,93493.0,0.00021371]
[1765398721499,0.17035025,93517.0,93507.0,0.33642393]
[1765398721704,0.37504025,93520.0,93508.0,0.0106923]
[1765398722010,8.325e-05,93521.0,93520.0,0.66285]
[1765398722201,0.20469,93520.0,93507.0,0.00013393]
[1765398722398,0.70107,93508.0,93507.0,0.00013393]
[1765398722601,0.70107,93508.0,93465.0,0.00106992]
[1765398722602,0.70107,93494.0,93480.0,0.0106954]
[1765398722906,0.70107,93494.0,93465.0,0.00106992]
[1765398723104,0.00016037,93503.0,93502.0,0.66285]
[1765398723807,0.0002411,93503.0,93502.0,0.66285]
[1765398725012,0.0106899,93529.0,93502.0,0.4]
[1765398725200,0.0106917,93513.0,93502.0,0.0106929]
[1765398725507,0.0116929,93503.0,93502.0,0.66285]
[1765398725707,0.7127629,93503.0,93502.0,0.00110967]
[1765398725911,0.7117629,93503.0,93502.0,0.00510967]
[1765398726123,0.7117629,93503.0,93502.0,0.00577429]
[1765398726124,0.71183997,93503.0,93502.0,0.00577429]
[1765398726504,0.71183997,93503.0,93502.0,0.00243891]
[1765398727013,0.0106938,93495.0,93493.0,0.00037408]
[1765398727312,0.70117056,93494.0,93493.0,0.00037408]
[1765398727711,0.70107,93494.0,93493.0,0.00170332]
[1765398727905,1.06199382,93494.0,93493.0,0.00170332]
[1765398728109,1.06199382,93494.0,93493.0,0.0018007]
[1765398728110,0.36092382,93494.0,93493.0,0.0018007]
[1765398728406,1.06199382,93494.0,93493.0,0.0018007]
[1765398728808,1.06199382,93494.0,93493.0,0.0038007]
[1765398728809,1.06187,93494.0,93493.0,0.0038007]
[1765398729207,1.06187,93494.0,93493.0,0.0028007]
[1765398729915,1.06387,93494.0,93493.0,0.0028007]
[1765398730113,0.36290095,93494.0,93493.0,0.3676547]
[1765398730316,0.36290095,93494.0,93493.0,0.7020847]
[1765398730510,0.00210095,93494.0,93493.0,0.7020847]
[1765398730709,0.00310095,93494.0,93493.0,0.7010847]
[1765398731408,0.00010095,93494.0,93493.0,0.7010847]
[1765398731611,0.08552027,93517.0,93511.0,0.68859]
[1765398732023,0.08552027,93517.0,93510.0,0.0106921]
[1765398732315,0.08552027,93517.0,93511.0,0.69001662]
[1765398732515,0.00028205,93512.0,93511.0,0.69001662]
[1765398732712,0.00028205,93512.0,93511.0,0.69201662]
[1765398733421,0.00028205,93512.0,93511.0,0.35758662]
[1765398733608,0.00028205,93512.0,93511.0,0.00408553]
[1765398733807,0.35799205,93512.0,93511.0,0.00408553]
[1765398734005,0.70588205,93512.0,93511.0,0.00474444]
[1765398734221,0.70588205,93512.0,93511.0,0.00274444]
[1765398734222,0.7058571,93512.0,93511.0,0.00274444]
[1765398734416,0.7058571,93512.0,93510.0,0.003]
[1765398734417,0.7162919,93511.0,93510.0,0.003]
[1765398734616,0.71339826,93511.0,93510.0,0.003]
[1765398734815,0.0106925,93507.0,93501.0,0.010693]
[1765398735012,0.7056,93494.0,93493.0,0.00037408]
[1765398735317,0.21526,93483.0,93460.0,0.3608]
[1765398735519,1.2923571,93466.0,93449.0,0.3608]
[1765398735716,0.010699,93449.0,93448.0,8.292e-05]
[1765398735921,0.25176527,93460.0,93449.0,0.010699]
[1765398736118,0.3608,93452.0,93451.0,0.68859]
[1765398736322,8.892e-05,93459.0,93448.0,8.292e-05]
[1765398736518,0.0106984,93455.0,93448.0,8.292e-05]
[1765398737121,0.0106988,93452.0,93448.0,8.292e-05]
[1765398737322,0.5867583,93456.0,93448.0,8.292e-05]
[1765398737522,0.3608,93456.0,93448.0,8.292e-05]
[1765398737713,8.892e-05,93459.0,93448.0,8.292e-05]
[1765398737714,8.892e-05,93459.0,93458.0,0.68859]
[1765398737913,0.0106984,93455.0,93448.0,0.00408292]
[1765398738221,0.0106984,93455.0,93448.0,0.00508292]
[1765398738726,0.0106988,93452.0,93448.0,0.00208292]
[1765398738919,0.00011859,93451.0,93448.0,8.292e-05]
[1765398739115,0.00011859,93451.0,93450.0,0.35416]
[1765398739810,0.00011859,93451.0,93450.0,0.68859]
[1765398740219,0.00011859,93451.0,93448.0,8.292e-05]
[1765398740220,0.7056,93449.0,93448.0,8.292e-05]
[1765398740416,0.7163,93441.0,93438.0,0.3608]
[1765398740616,0.7163,93441.0,93418.0,0.04813866]
[1765398740617,1.4379,93441.0,93425.0,0.0107017]
[1765398740822,1.4379,93441.0,93415.0,0.0010705]
[1765398740823,0.0107027,93418.0,93415.0,0.0010705]
[1765398741020,0.3715027,93418.0,93415.0,0.0810705]
[1765398741328,0.7056,93416.0,93415.0,0.0010705]
[1765398741518,0.70568323,93416.0,93415.0,0.0010705]
[1765398742826,1.06648323,93416.0,93415.0,0.0010705]
[1765398743215,1.15284936,93416.0,93415.0,0.0010705]
[1765398743520,1.15276613,93416.0,93415.0,0.0010705]
[1765398743825,1.15284804,93416.0,93415.0,0.0010705]
[1765398745037,1.15284804,93416.0,93390.0,0.00107078]
[1765398745038,0.0107057,93391.0,93390.0,0.00107078]
[1765398745329,0.00016055,93400.0,93399.0,0.6992948]
[1765398745521,0.00026134,93400.0,93399.0,0.6992948]
[1765398747324,0.00026134,93400.0,93399.0,0.70432712]
[1765398747731,0.00026134,93400.0,93399.0,0.70453342]
[1765398747925,0.35265134,93400.0,93399.0,0.00844492]
[1765398748227,0.70150134,93400.0,93390.0,0.00107078]
[1765398748421,0.00026134,93400.0,93399.0,0.34834]
[1765398748633,0.00026134,93400.0,93399.0,0.69515]
[1765398748816,0.08691181,93416.0,93415.0,0.3590429]
[1765398749023,0.21526,93420.0,93419.0,0.0107025]
[1765398749322,0.0107022,93422.0,93407.0,0.3608]
[1765398749528,0.0107022,93422.0,93421.0,0.34834]
[1765398750027,8.567e-05,93422.0,93418.0,0.0107025]
[1765398750231,0.08557307,93422.0,93421.0,0.69515]
[1765398750419,0.08657307,93422.0,93421.0,0.69515]
[1765398750825,0.08857307,93422.0,93421.0,0.69515]
[1765398751216,0.08757307,93422.0,93421.0,0.69515]
[1765398751423,0.09627527,93422.0,93421.0,0.003]
[1765398751726,8.567e-05,93422.0,93421.0,1.05895]
[1765398752821,0.08483516,93431.0,93430.0,0.7058512]
[1765398753019,0.00016055,93431.0,93430.0,0.7058512]
[1765398753524,0.08576809,93431.0,93430.0,0.7058512]
[1765398753723,0.0002013,93431.0,93430.0,0.7058512]
[1765398753918,0.3608,93445.0,93444.0,0.7058496]
[1765398754231,0.08494427,93445.0,93444.0,0.7058496]
[1765398754432,0.0106993,93447.0,93444.0,0.7058496]
[1765398754634,0.0106989,93451.0,93440.0,0.3608]
[1765398754927,0.44490303,93455.0,93453.0,0.0106986]
[1765398755115,0.45560153,93455.0,93453.0,0.0106986]
[1765398755320,0.44490303,93455.0,93454.0,0.00115035]
[1765398755520,0.44490303,93455.0,93454.0,0.69630035]
[1765398755720,0.08410303,93455.0,93454.0,0.69664203]
[1765398755925,0.79604133,93455.0,93454.0,0.00149203]
[1765398756143,0.79604133,93455.0,93454.0,2.03e-06]
[1765398756321,0.79604133,93455.0,93436.0,0.00016055]
[1765398756322,0.7119404,93437.0,93436.0,0.00016055]
[1765398756516,1.0727404,93437.0,93436.0,0.00016055]
[1765398756922,0.70124,93437.0,93436.0,0.00016055]
[1765398757233,0.3608,93452.0,93451.0,0.0106988]
[1765398757429,0.08510303,93455.0,93454.0,0.0106985]
[1765398757630,0.00116055,93455.0,93454.0,0.7058485]
[1765398757939,0.00016055,93455.0,93454.0,0.7058485]
[1765398758829,0.86832063,93495.0,93454.0,0.7058485]
[1765398758830,0.3608,93495.0,93471.0,0.0106965]
[1765398759028,0.35239,93492.0,93491.0,0.0106942]
[1765398759233,0.35239,93492.0,93460.0,0.25176527]
[1765398759234,0.08347887,93495.0,93468.0,0.0106968]
[1765398759425,0.25176527,93500.0,93491.0,0.0106942]
[1765398759626,0.0106947,93487.0,93486.0,0.00016046]
[1765398759829,0.0106943,93491.0,93486.0,0.00016046]
[1765398760134,0.0106941,93492.0,93486.0,0.01085526]
[1765398760426,0.0106946,93488.0,93486.0,0.00016046]
[1765398760626,0.0106946,93488.0,93486.0,0.01085526]
[1765398760833,0.09218556,93495.0,93486.0,0.01085516]
[1765398761021,0.0106943,93491.0,93486.0,0.00016046]
[1765398761331,0.0106942,93492.0,93490.0,0.69515]
[1765398761723,0.0106942,93492.0,93491.0,0.69515]
[1765398761923,0.09218556,93495.0,93486.0,0.00016046]
[1765398761924,0.005,93495.0,93494.0,0.69515]
[1765398762233,0.0106928,93504.0,93503.0,0.69515]
[1765398762545,0.08585718,93504.0,93503.0,0.69617525]
[1765398762830,0.0106911,93519.0,93504.0,0.7058427]
[1765398763031,0.3608,93518.0,93517.0,0.0106912]
[1765398763232,0.35239,93528.0,93527.0,0.01069]
[1765398763644,0.3608,93537.0,93504.0,0.01211597]
[1765398763645,0.3608,93537.0,93532.0,0.69515]
[1765398763824,0.0106886,93541.0,93533.0,0.0106894]
[1765398764027,0.00016037,93546.0,93537.0,0.00142327]
[1765398764223,0.00016037,93546.0,93544.0,0.0106881]
[1765398764530,0.00016037,93546.0,93545.0,0.69515]
[1765398764922,0.08476474,93558.0,93557.0,0.0106867]
[1765398765128,0.01175468,93565.0,93557.0,0.0106867]
[1765398765328,0.00106878,93565.0,93549.0,0.0106875]
[1765398765523,0.0106864,93560.0,93553.0,0.0106871]
[1765398765736,0.0106864,93560.0,93549.0,0.0106876]
[1765398765934,0.01175468,93565.0,93545.0,0.00142327]
[1765398766137,0.3638,93558.0,93557.0,0.34834]
[1765398766435,0.003,93558.0,93557.0,0.69515]
[1765398766635,0.00016037,93564.0,93563.0,0.34834]
[1765398767129,0.00016037,93564.0,93563.0,0.34976327]
[1765398767839,0.00016037,93564.0,93563.0,0.69657327]
[1765398768937,0.00416037,93564.0,93563.0,0.69657327]
[1765398769136,0.00106878,93565.0,93564.0,0.0106859]
[1765398769334,0.00106878,93565.0,93564.0,0.7058359]
[1765398769542,0.3608,93583.0,93582.0,0.7058338]
[1765398769735,0.3608,93589.0,93585.0,0.69515]
[1765398770138,0.0010685,93590.0,93585.0,1.05737327]
[1765398770341,0.3608,93611.0,93594.0,0.7058325]
[1765398770342,0.0001051,93595.0,93594.0,0.7058325]
[1765398770738,0.0001051,93595.0,93594.0,1.0666325]
[1765398771160,0.2314303,93621.0,93620.0,0.69515]
[1765398771342,0.70124,93641.0,93611.0,0.25176527]
[1765398771531,0.70114,93641.0,93631.0,0.0106782]
[1765398771735,0.70114,93641.0,93629.0,0.0106784]
[1765398772036,0.70114,93641.0,93640.0,0.3608]
[1765398772240,0.70114,93641.0,93640.0,0.36222327]
[1765398772833,0.7119181,93632.0,93631.0,0.00016019]
[1765398773031,0.7119181,93632.0,93578.0,0.02784116]
[1765398773032,0.0106806,93611.0,93603.0,0.3608]
[1765398773245,0.25176527,93620.0,93604.0,0.0106813]
[1765398773435,0.3608,93615.0,93604.0,0.0106813]
[1765398773631,0.0106797,93619.0,93604.0,0.0106813]
[1765398774032,0.25176527,93620.0,93608.0,0.3608]
[1765398774436,0.26244487,93620.0,93608.0,0.3608]
[1765398774945,0.01083929,93621.0,93609.0,0.0106807]
[1765398775145,0.25176527,93620.0,93608.0,0.3608]
[1765398775346,0.25176527,93620.0,93609.0,0.0106807]
[1765398775549,0.001,93619.0,93609.0,0.0106807]
[1765398776349,0.25376527,93620.0,93609.0,0.0106807]
[1765398776641,0.25376527,93620.0,93608.0,0.3608]
[1765398776836,0.25376527,93620.0,93608.0,0.3714808]
[1765398777037,0.0116796,93619.0,93608.0,0.3714808]
[1765398777835,0.002,93619.0,93608.0,0.3608]
[1765398778044,0.002,93619.0,93617.0,0.0106798]
[1765398778239,0.001,93619.0,93618.0,0.34834]
[1765398778439,0.002,93619.0,93618.0,0.34834]
[1765398778653,0.002,93619.0,93618.0,0.69457]
[1765398778946,0.00015989,93621.0,93620.0,0.68519]
[1765398780148,0.33340989,93621.0,93618.0,0.001]
[1765398780352,0.00015989,93621.0,93620.0,0.68519]
[1765398781838,0.00015989,93621.0,93608.0,0.3608]
[1765398781839,0.01068,93616.0,93615.0,0.33896]
[1765398782039,0.01068,93616.0,93608.0,0.3608]
[1765398782040,0.0106806,93611.0,93608.0,0.3608]
[1765398782247,0.0106806,93611.0,93570.0,0.00099999]
[1765398782248,0.6800614,93603.0,93590.0,0.3608]
[1765398782447,0.6800614,93603.0,93582.0,0.3608]
[1765398782647,0.01107777,93605.0,93584.0,0.33896]
[1765398782943,0.33325,93585.0,93571.0,0.3608]
[1765398783147,0.3608,93576.0,93566.0,0.00013341]
[1765398783340,0.25176527,93581.0,93575.0,0.0106846]
[1765398783537,0.25176527,93581.0,93566.0,0.00013341]
[1765398783853,0.33325,93577.0,93576.0,0.0106844]
[1765398784434,0.00016029,93583.0,93582.0,0.0106838]
[1765398784950,0.00016029,93583.0,93582.0,0.3496438]
[1765398785135,0.00016029,93583.0,93582.0,0.6958738]
[1765398785746,0.00016029,93583.0,93582.0,0.68519]
[1765398786247,0.01088812,93609.0,93582.0,0.68519]
[1765398786248,0.3608,93612.0,93611.0,0.0106805]
[1765398786448,0.3608,93612.0,93611.0,0.6958705]
[1765398786647,0.66938,93615.0,93614.0,0.0106802]
[1765398787143,0.17130063,93621.0,93600.0,0.3608]
[1765398787144,0.17130063,93621.0,93608.0,0.3608]
[1765398787337,0.17130063,93621.0,93612.0,0.0106803]
[1765398787541,0.3608,93616.0,93605.0,0.00016029]
[1765398788151,0.003,93615.0,93614.0,0.0106801]
[1765398788644,0.17130063,93621.0,93616.0,0.0106799]
[1765398788838,0.0106799,93617.0,93615.0,0.0106801]
[1765398789043,0.3608,93616.0,93615.0,0.0106801]
[1765398789243,0.17130063,93621.0,93620.0,0.0106795]
[1765398789447,0.17130063,93621.0,93605.0,0.00016029]
[1765398789448,0.0106798,93617.0,93608.0,0.3608]
[1765398789745,0.3608,93616.0,93615.0,0.0106801]
[1765398789951,0.3608,93616.0,93614.0,0.0106802]
[1765398790146,0.002,93615.0,93614.0,0.3491402]
[1765398790445,0.002,93615.0,93614.0,0.7070402]
[1765398790648,0.7156894,93621.0,93620.0,0.0106795]
[1765398790843,0.0106798,93617.0,93605.0,0.00016029]
[1765398791042,0.3608,93616.0,93613.0,0.0106802]
[1765398791243,0.003,93621.0,93605.0,0.00016029]
[1765398791244,0.0106802,93614.0,93605.0,0.00016029]
[1765398791442,0.0106808,93609.0,93606.0,0.0106811]
[1765398791754,0.7126911,93606.0,93605.0,0.00016029]
[1765398791938,0.0106837,93583.0,93582.0,0.38897116]
[1765398792140,0.0106802,93614.0,93582.0,0.38897116]
[1765398792141,0.34322,93589.0,93588.0,0.0106831]
[1765398792336,0.34322,93589.0,93588.0,0.02899219]
[1765398792549,0.70201,93589.0,93588.0,0.02899219]
[1765398792756,0.70201,93589.0,93588.0,0.02106379]
[1765398792757,1.06281,93589.0,93588.0,0.02106379]
[1765398793248,1.06281,93589.0,93588.0,3.79e-06]
[1765398793660,1.06281,93589.0,93579.0,0.00016029]
[1765398793661,0.70201,93582.0,93581.0,0.02715271]
[1765398793854,0.70201,93580.0,93579.0,0.00016029]
[1765398794347,0.0106838,93583.0,93580.0,0.0106841]
[1765398794554,0.3608,93585.0,93584.0,0.0106836]
[1765398794853,0.002,93589.0,93588.0,0.3491431]
[1765398795051,0.002,93589.0,93588.0,0.7070431]
[1765398795353,0.002,93589.0,93588.0,1.0678431]
[1765398795555,0.3608,93615.0,93597.0,0.7070421]
[1765398795744,0.01174523,93640.0,93597.0,0.7070421]
[1765398795745,0.3608,93626.0,93600.0,0.20599]
[1765398795945,0.17130063,93620.0,93618.0,0.0106796]
[1765398796152,0.0106793,93622.0,93618.0,0.0106796]
[1765398796352,0.70201,93619.0,93618.0,0.0106796]
[1765398797848,0.70201,93619.0,93618.0,0.3714796]
[1765398798052,0.008,93622.0,93621.0,0.3491394]
[1765398798256,0.0106801,93615.0,93614.0,0.33846]
[1765398798460,0.0106794,93621.0,93618.0,0.0106797]
[1765398798649,0.003,93619.0,93618.0,0.0106797]
[1765398799051,0.006,93619.0,93618.0,0.3491397]
[1765398799352,0.003,93619.0,93618.0,0.7070397]
[1765398799657,0.00016012,93628.0,93618.0,0.7070397]
[1765398799658,0.004,93621.0,93620.0,0.69636]
[1765398799855,0.008,93621.0,93620.0,0.69636]
[1765398800251,0.004,93621.0,93620.0,0.69636]
[1765398800854,0.004,93621.0,93615.0,0.03753707]
[1765398800855,0.70201,93619.0,93615.0,0.03753707]
[1765398801054,0.7126901,93615.0,93614.0,0.03753707]
[1765398801759,0.34322,93620.0,93619.0,0.0106795]
[1765398801963,0.0106801,93615.0,93614.0,0.03753707]
[1765398802158,0.7126901,93615.0,93614.0,0.03753707]
[1765398802354,0.7126901,93615.0,93612.0,0.0106804]
[1765398802553,0.7126905,93611.0,93610.0,0.03753707]
[1765398802755,0.70201,93610.0,93609.0,0.00016029]
[1765398803762,1.06281,93610.0,93609.0,0.00016029]
[1765398804271,1.06281,93610.0,93596.0,0.03753707]
[1765398804272,0.7126926,93593.0,93591.0,0.03753707]
[1765398804453,0.7126936,93584.0,93583.0,0.0563056]
[1765398804760,0.3539051,93571.0,93569.0,0.0106852]
[1765398805153,0.34322,93570.0,93561.0,0.0563056]
[1765398805356,0.34322,93570.0,93557.0,0.3608]
[1765398805357,0.70201,93567.0,93565.0,0.0106857]
[1765398805561,0.70201,93567.0,93561.0,0.0106862]
[1765398805759,0.70201,93567.0,93559.0,0.00016029]
[1765398806159,0.28345819,93568.0,93559.0,0.00016029]
[1765398806160,0.7126963,93560.0,93559.0,0.00016029]
[1765398806468,1.0734963,93560.0,93559.0,0.00016029]
[1765398806652,1.06281,93560.0,93559.0,0.00016029]
[1765398806852,0.34322,93560.0,93559.0,0.00016029]
[1765398807058,0.17130063,93570.0,93567.0,0.0106855]
[1765398807257,0.17146092,93577.0,93576.0,0.0106845]
[1765398807552,0.34322,93571.0,93570.0,0.0106851]
[1765398807864,0.01092371,93577.0,93575.0,0.0106846]
[1765398808064,0.34322,93576.0,93575.0,0.0106846]
[1765398808270,0.68358,93576.0,93571.0,0.010685]
[1765398808460,0.34388,93572.0,93571.0,0.010685]
[1765398808668,0.00023921,93577.0,93576.0,0.6888045]
[1765398810059,0.05718989,93631.0,93576.0,0.6888045]
[1765398810060,0.17130063,93610.0,93587.0,0.0106832]
[1765398810264,0.3608,93619.0,93607.0,0.33277]
[1765398810470,1.04504,93608.0,93603.0,0.0106814]
[1765398810669,0.34388,93606.0,93605.0,0.0106811]
[1765398810870,0.34388,93606.0,93592.0,0.3608]
[1765398811166,0.3608,93608.0,93585.0,0.19814]
[1765398811167,0.3608,93599.0,93590.0,0.00016029]
[1765398811464,0.18198223,93602.0,93590.0,0.00016029]
[1765398811666,0.01073569,93605.0,93594.0,0.3608]
[1765398811974,0.68424,93591.0,93590.0,0.01084319]
[1765398812265,0.68429449,93591.0,93590.0,0.01084319]
[1765398813168,5.449e-05,93591.0,93590.0,0.68896319]
[1765398814461,5.449e-05,93591.0,93590.0,0.69096319]
[1765398814859,0.69497729,93591.0,93590.0,0.00016029]
[1765398815163,0.69497729,93591.0,93590.0,0.00516029]
[1765398815669,0.69497729,93591.0,93590.0,0.00416029]
[1765398815862,0.69497729,93591.0,93590.0,0.00616029]
[1765398816064,0.69497729,93591.0,93590.0,0.00216029]
[1765398816264,0.69497729,93591.0,93590.0,0.00316029]
[1765398817268,0.69697729,93591.0,93590.0,0.00116029]
[1765398817775,0.69797729,93591.0,93590.0,0.00016029]
[1765398817970,0.00105449,93591.0,93590.0,0.67828029]
[1765398818170,0.00205449,93591.0,93590.0,0.67828029]
[1765398818482,0.0106805,93612.0,93590.0,0.67828029]
[1765398818779,0.0106804,93613.0,93607.0,0.688801]
[1765398819073,0.3608,93614.0,93607.0,0.688801]
[1765398819467,0.17130063,93620.0,93607.0,0.688801]
[1765398819665,0.3608,93626.0,93607.0,1.049601]
[1765398820060,0.010679,93625.0,93607.0,1.049601]
[1765398820259,0.3608,93626.0,93607.0,1.049601]
[1765398820460,0.17130063,93630.0,93607.0,1.049601]
[1765398820659,0.0106794,93621.0,93607.0,1.049601]
[1765398820862,0.68440012,93608.0,93607.0,0.371481]
[1765398821273,0.68440012,93608.0,93607.0,0.001]
[1765398821567,0.68440012,93608.0,93607.0,0.011681]
[1765398822577,0.00016012,93608.0,93607.0,0.689801]
[1765398824575,0.19807,93636.0,93616.0,0.2088199]
[1765398824576,0.3608,93628.0,93616.0,0.2088199]
[1765398824877,0.17130063,93630.0,93616.0,0.2088199]
[1765398824878,0.18197903,93630.0,93627.0,0.0106786]
[1765398825076,0.19807,93636.0,93627.0,0.0106786]
[1765398825077,0.3608,93629.0,93627.0,0.0106786]
[1765398825279,0.3714786,93629.0,93627.0,0.0106786]
[1765398825479,0.68424,93627.0,93626.0,0.0106787]
[1765398825778,0.34388,93627.0,93626.0,0.0106787]
[1765398826278,0.70468,93638.0,93622.0,0.3608]
[1765398826582,0.0106764,93647.0,93639.0,0.0106773]
[1765398826878,0.0106764,93647.0,93632.0,0.3608]
[1765398826879,0.010677,93642.0,93637.0,0.0106774]
[1765398827066,0.0106773,93639.0,93634.0,0.0106779]
[1765398827265,0.0106773,93639.0,93632.0,0.3608]
[1765398827266,0.0106769,93643.0,93637.0,0.0106775]
[1765398827469,0.0106775,93638.0,93635.0,0.0106777]
[1765398827674,0.0106771,93642.0,93638.0,0.0106774]
[1765398827879,0.17130063,93644.0,93638.0,0.0106774]
[1765398828277,0.17130063,93650.0,93639.0,0.67812]
[1765398828666,0.3608,93648.0,93639.0,0.67812]
[1765398828872,0.17130063,93650.0,93639.0,0.67812]
[1765398829083,0.3608,93658.0,93638.0,0.0106774]
[1765398829377,0.3608,93658.0,93637.0,0.001]
[1765398829378,0.0106757,93654.0,93651.0,0.0106759]
[1765398829576,0.68424,93652.0,93651.0,0.0106759]
[1765398830581,0.0106764,93648.0,93642.0,0.3608]
[1765398830775,0.0106764,93648.0,93639.0,0.00016021]
[1765398830776,0.68424,93640.0,93639.0,0.00016021]
[1765398831771,0.34388,93648.0,93647.0,0.0106762]
[1765398831976,0.34388,93648.0,93646.0,0.0106764]
[1765398831977,0.6949164,93647.0,93646.0,0.0106764]
[1765398832376,0.68424,93647.0,93646.0,0.0106764]
[1765398833782,0.68424,93647.0,93643.0,0.0106768]
[1765398833984,0.0106762,93649.0,93639.0,0.00016021]
[1765398834177,0.0106762,93649.0,93647.0,0.0106763]
[1765398834376,0.001,93647.0,93639.0,0.00016021]
[1765398834577,0.34036,93640.0,93639.0,0.00016021]
[1765398834783,0.68424,93640.0,93639.0,0.01083751]
[1765398834976,0.68424,93640.0,93639.0,0.00016021]
[1765398835371,0.20465,93645.0,93639.0,0.00016021]
[1765398835372,0.68524,93649.0,93648.0,0.0106763]
[1765398835979,0.68624,93649.0,93648.0,0.0106763]
[1765398836279,0.34368,93664.0,93663.0,0.0106746]
[1765398836483,0.68158,93664.0,93663.0,0.0106746]
[1765398836774,0.68158,93677.0,93676.0,0.0106731]
[1765398836979,0.68158,93671.0,93667.0,0.00016021]
[1765398837186,0.68158,93671.0,93668.0,0.010674]
[1765398837389,0.3379,93669.0,93668.0,0.010674]
[1765398837588,0.68158,93685.0,93675.0,0.20501]
[1765398837796,0.68158,93685.0,93676.0,0.3608]
[1765398838088,0.68158,93685.0,93683.0,0.0106723]
[1765398838286,0.3379,93684.0,93683.0,0.0106723]
[1765398838677,0.3379,93684.0,93682.0,0.3608]
[1765398838891,0.68153,93683.0,93682.0,0.3608]
[1765398839285,0.3608,93683.0,93671.0,0.3608]
[1765398839489,0.0106727,93680.0,93675.0,0.0106731]
[1765398839791,0.0106727,93680.0,93671.0,0.3608]
[1765398840188,0.0106725,93681.0,93671.0,0.3608]
[1765398840384,0.68153,93672.0,93671.0,0.3608]
[1765398840585,0.68153,93668.0,93664.0,0.0106745]
[1765398840979,0.3482,93668.0,93667.0,0.33242021]
[1765398841290,0.002,93680.0,93679.0,0.69173]
[1765398841691,0.002,93683.0,93682.0,0.69173]
[1765398841996,0.68153,93695.0,93678.0,0.3608]
[1765398842186,0.68153,93695.0,93686.0,0.3608]
[1765398842383,0.68153,93695.0,93691.0,0.0106713]
[1765398842689,0.68153,93691.0,93686.0,0.3714719]
[1765398842883,0.17130063,93700.0,93690.0,0.20929]
[1765398843079,0.3482,93702.0,93701.0,0.0106702]
[1765398843285,0.3482,93702.0,93701.0,0.3429302]
[1765398843492,0.5168285,93717.0,93712.0,0.010669]
[1765398843674,0.3608,93718.0,93712.0,0.010669]
[1765398843876,0.3608,93728.0,93714.0,0.69173]
[1765398844291,0.3608,93728.0,93707.0,0.3608]
[1765398844480,0.0106674,93727.0,93720.0,0.3608]
[1765398844794,0.3482,93721.0,93720.0,0.3608]
[1765398845086,0.3482,93721.0,93717.0,0.0106684]
[1765398845087,0.0106682,93719.0,93717.0,0.33226]
[1765398845288,0.0106684,93717.0,93714.0,0.00016012]
[1765398845488,1.04333,93715.0,93714.0,0.00016012]
[1765398845886,0.3492,93715.0,93714.0,0.00016012]
[1765398846202,0.002,93721.0,93720.0,0.3429281]
[1765398846390,0.3502,93721.0,93720.0,0.69306]
[1765398846579,0.17130063,93730.0,93714.0,0.00016012]
[1765398846580,0.6921987,93715.0,93714.0,0.00016012]
[1765398846780,1.0539987,93715.0,93714.0,0.00016012]
[1765398847093,1.0539987,93715.0,93679.0,1.05253]
[1765398847094,0.0106727,93680.0,93679.0,1.05253]
[1765398847290,0.6922027,93680.0,93679.0,0.3608]
[1765398847789,0.68153,93680.0,93679.0,0.3608]
[1765398847988,0.3482,93680.0,93679.0,0.3608]
[1765398848180,0.00015953,93689.0,93679.0,0.3608]
[1765398848383,0.00015953,93689.0,93688.0,0.7024017]
[1765398848589,0.00015953,93689.0,93688.0,1.0632017]
[1765398848793,0.3608,93712.0,93708.0,0.0106695]
[1765398849091,0.61146783,93720.0,93703.0,0.01067]
[1765398849092,0.3608,93720.0,93703.0,0.01067]
[1765398849293,0.62213603,93720.0,93713.0,0.0106689]
[1765398849494,0.62213603,93720.0,93708.0,0.3608]
[1765398849495,0.3608,93720.0,93708.0,0.3608]
[1765398849690,0.25066783,93730.0,93708.0,0.3608]
[1765398849691,0.0106682,93719.0,93708.0,0.3608]
[1765398849988,0.0106674,93727.0,93719.0,0.0106682]
[1765398850192,0.002,93720.0,93708.0,0.3608]
[1765398850386,0.010669,93712.0,93708.0,0.3608]
[1765398850588,0.3608,93718.0,93705.0,0.00016012]